bitfinex-derivatives/quotes_SOLF0:USTF0_20260123
["timestamp","ask_amount","ask_price","bid_price","bid_amount"]
[1769181243224,8.7136587,125.84,125.76,111.4616]
[1769181243413,8.7136587,125.86,125.78,7.1641]
[1769181243817,8.7136587,125.86,125.74,116.77263214]
[1769181244214,8.7136587,125.85,125.75,111.471]
[1769181244415,8.7136587,125.85,125.76,111.4592]
[1769181244817,8.7136587,125.85,125.75,111.471]
[1769181245123,8.7136587,125.85,125.77,116.75203214]
[1769181245319,8.7136587,125.85,125.79,7.1634]
[1769181245926,8.7136587,125.85,125.77,5.29963214]
[1769181246616,8.7136587,125.85,125.79,7.1635]
[1769181247124,7.1584,125.89,125.78,111.4412]
[1769181247125,8.7136587,125.88,125.78,111.4412]
[1769181247327,8.7136587,125.88,125.8,7.1627]
[1769181248226,8.7136587,125.88,125.77,116.75053214]
[1769181248227,8.7136587,125.87,125.77,116.75053214]
[1769181249027,8.7136587,125.87,125.79,7.1635]
[1769181250025,15.8728587,125.87,125.79,7.1635]
[1769181250421,8.7136587,125.87,125.79,111.4353]
[1769181251026,8.7136587,125.87,125.81,7.1624]
[1769181251429,8.7136587,125.87,125.77,116.75053214]
[1769181251723,8.7136587,125.87,125.8,7.163]
[1769181252131,8.7136587,125.87,125.77,5.29963214]
[1769181253620,8.7136587,125.85,125.78,7.1639]
[1769181254634,8.7136587,125.87,125.79,7.1636]
[1769181255426,15.8728587,125.87,125.79,7.1636]
[1769181255629,8.7136587,125.86,125.79,7.1636]
[1769181255824,8.7136587,125.86,125.77,7.1643]
[1769181256026,8.7136587,125.86,125.75,111.471]
[1769181256229,8.7136587,125.85,125.75,111.471]
[1769181256929,15.8727587,125.88,125.78,111.4439]
[1769181257331,8.7136587,125.88,125.79,111.4349]
[1769181258228,7.1579,125.9,125.82,7.1619]
[1769181258434,15.8715587,125.9,125.82,7.1619]
[1769181260939,15.8715587,125.9,125.83,7.1613]
[1769181261630,15.8715587,125.9,125.84,7.1608]
[1769181261631,8.7136587,125.9,125.84,7.1608]
[1769181261827,8.7136587,125.9,125.8,111.4245]
[1769181263026,8.7136587,125.89,125.82,7.1615]
[1769181263530,8.7136587,125.88,125.77,111.4468]
[1769181264240,15.8722587,125.88,125.78,111.444]
[1769181264732,15.8728587,125.87,125.78,111.444]
[1769181265638,8.7136587,125.89,125.8,111.4243]
[1769181266034,15.8716587,125.89,125.83,7.1613]
[1769181266232,8.7136587,125.88,125.79,111.4326]
[1769181266839,15.8723587,125.88,125.82,7.1619]
[1769181267039,15.8723587,125.88,125.78,111.444]
[1769181267238,8.7136587,125.87,125.78,111.444]
[1769181267436,8.7136587,125.86,125.8,7.1631]
[1769181268235,8.7136587,125.84,125.74,111.4721]
[1769181269132,15.8751587,125.83,125.75,7.1656]
[1769181269339,8.7136587,125.83,125.74,111.4792]
[1769181270333,8.7136587,125.85,125.75,111.47]
[1769181270542,8.7136587,125.85,125.73,111.4813]
[1769181270743,8.7136587,125.81,125.74,7.1661]
[1769181271041,8.7136587,125.81,125.72,111.4901]
[1769181271940,8.7136587,125.81,125.75,7.1659]
[1769181272140,8.7136587,125.81,125.73,111.4886]
[1769181272541,8.7136587,125.85,125.77,7.1648]
[1769181272741,8.7136587,125.84,125.76,111.4596]
[1769181273141,8.7136587,125.87,125.77,111.4512]
[1769181273441,8.7136587,125.87,125.81,7.1625]
[1769181276842,8.7136587,125.87,125.79,7.1634]
[1769181277343,8.7136587,125.87,125.77,111.4512]
[1769181279045,8.7136587,125.87,125.8,7.1629]
[1769181279246,8.7136587,125.87,125.79,111.4347]
[1769181280443,8.7136587,125.89,125.81,111.4166]
[1769181280949,8.7136587,125.89,125.83,7.1614]
[1769181281344,8.7136587,125.92,125.82,111.4089]
[1769181282242,8.7136587,125.91,125.85,7.1601]
[1769181282641,8.7136587,125.91,125.82,111.4089]
[1769181282842,8.7136587,125.9,125.83,7.1608]
[1769181283043,8.7136587,125.9,125.81,111.4166]
[1769181283246,7.1569,125.91,125.81,111.4166]
[1769181283441,15.8711587,125.9,125.81,111.4166]
[1769181283645,15.8711587,125.9,125.8,111.4268]
[1769181284951,15.8703587,125.92,125.82,111.407]
[1769181285947,8.7136587,125.91,125.85,7.1603]
[1769181288046,8.7136587,125.91,125.8,111.4268]
[1769181288047,8.7136587,125.9,125.79,111.4347]
[1769181288352,8.7136587,125.9,125.8,111.4252]
[1769181289543,15.8711587,125.9,125.8,111.4252]
[1769181290960,15.8711587,125.9,125.82,7.1619]
[1769181291859,8.7136587,125.89,125.82,7.1619]
[1769181292258,8.7136587,125.89,125.83,7.1614]
[1769181294060,8.7136587,125.92,125.84,7.1608]
[1769181294960,7.157,125.91,125.84,9.31749901]
[1769181295148,15.8706587,125.91,125.84,9.31749901]
[1769181295457,8.7136587,125.91,125.84,9.31749901]
[1769181295947,10.87035771,125.91,125.84,9.31749901]
[1769181296149,8.7136587,125.9,125.84,9.31749901]
[1769181298561,8.7136587,125.9,125.85,7.1602]
[1769181299979,8.7136587,125.9,125.84,2.15669901]
[1769181300270,10.87035771,125.9,125.83,7.1609]
[1769181300476,10.87035771,125.9,125.84,9.31749901]
[1769181300676,8.7136587,125.9,125.84,9.31749901]
[1769181301178,8.7136587,125.9,125.85,7.1603]
[1769181301373,15.8693587,125.94,125.84,113.54519901]
[1769181301677,8.7136587,125.94,125.88,2.15669901]
[1769181301875,8.7136587,125.91,125.83,2.15669901]
[1769181302371,10.87035771,125.9,125.83,2.15669901]
[1769181302572,10.87035771,125.92,125.85,2.15669901]
[1769181302770,18.02715771,125.92,125.83,2.15669901]
[1769181302976,18.02715771,125.92,125.86,7.1596]
[1769181303274,8.7136587,125.92,125.85,2.15669901]
[1769181303481,10.87035771,125.94,125.87,7.1586]
[1769181304572,10.87035771,125.92,125.85,9.31639901]
[1769181305675,15.8705587,125.91,125.84,7.1608]
[1769181306283,8.7136587,125.91,125.83,113.55439901]
[1769181306869,7.1563,125.93,125.87,7.1591]
[1769181307073,15.8699587,125.93,125.87,7.1591]
[1769181307372,8.7136587,125.93,125.88,7.1585]
[1769181307783,8.7136587,125.93,125.85,2.15669901]
[1769181308374,10.87035771,125.92,125.85,2.15669901]
[1769181308575,10.87035771,125.92,125.86,7.1597]
[1769181309684,8.7136587,125.91,125.83,2.15669901]
[1769181309982,2.15669901,125.9,125.84,7.1603]
[1769181310183,2.15669901,125.9,125.83,2.15669901]
[1769181310383,10.87035771,125.9,125.83,2.15669901]
[1769181310886,10.87035771,125.9,125.85,7.1602]
[1769181311278,8.7136587,125.89,125.81,111.412]
[1769181311584,8.7136587,125.89,125.83,7.1609]
[1769181311786,2.15669901,125.9,125.83,2.15669901]
[1769181311986,10.87035771,125.9,125.83,2.15669901]
[1769181313380,10.87035771,125.9,125.84,7.1603]
[1769181313587,18.02775771,125.9,125.84,7.1603]
[1769181314986,8.7136587,125.89,125.81,2.15669901]
[1769181315684,8.7136587,125.89,125.82,7.1615]
[1769181315889,8.7136587,125.89,125.81,2.15669901]
[1769181316987,8.7136587,125.89,125.84,7.1607]
[1769181318590,10.87035771,125.88,125.84,7.1607]
[1769181320193,8.7136587,125.88,125.84,7.1607]
[1769181320889,10.87035771,125.88,125.81,2.15669901]
[1769181321090,10.87035771,125.88,125.8,111.4239]
[1769181321686,8.7136587,125.87,125.79,113.58859901]
[1769181321892,10.87035771,125.86,125.79,113.58859901]
[1769181322381,8.7136587,125.86,125.79,113.58859901]
[1769181322582,8.7136587,125.86,125.79,2.15669901]
[1769181323096,10.87035771,125.88,125.79,113.58949901]
[1769181323691,10.87035771,125.9,125.81,113.57149901]
[1769181324094,10.87035771,125.9,125.83,2.15669901]
[1769181324988,18.02795771,125.9,125.84,7.1608]
[1769181325294,8.7136587,125.89,125.83,2.15669901]
[1769181325495,8.7136587,125.89,125.83,9.31809901]
[1769181326983,8.7136587,125.89,125.83,7.1614]
[1769181327388,10.87035771,125.88,125.82,7.162]
[1769181328587,10.87035771,125.88,125.83,7.1612]
[1769181328890,10.87035771,125.9,125.82,113.56329901]
[1769181329087,8.7136587,125.9,125.82,113.56329901]
[1769181329290,2.15669901,125.92,125.84,2.15669901]
[1769181329897,2.15669901,125.92,125.87,7.1591]
[1769181330095,2.15669901,125.94,125.86,2.15669901]
[1769181330892,9.31189901,125.94,125.86,2.15669901]
[1769181331094,18.02555771,125.94,125.86,2.15669901]
[1769181331598,18.02555771,125.94,125.87,7.1591]
[1769181332797,8.7136587,125.93,125.87,7.1591]
[1769181332999,15.8693587,125.93,125.87,7.1591]
[1769181333195,8.7136587,125.92,125.85,2.15669901]
[1769181333897,2.15669901,125.94,125.83,111.3975]
[1769181333898,18.02555771,125.94,125.87,9.31579901]
[1769181334699,18.02555771,125.94,125.88,7.1584]
[1769181335387,8.7136587,125.96,125.89,2.15669901]
[1769181335795,8.7136587,125.96,125.87,111.3615]
[1769181335796,10.87035771,125.95,125.87,2.15669901]
[1769181336299,10.87035771,125.95,125.89,7.158]
[1769181337197,10.87035771,125.95,125.89,9.31469901]
[1769181337198,8.7136587,125.95,125.89,9.31469901]
[1769181337384,8.7136587,125.95,125.9,7.1572]
[1769181338592,10.87035771,125.95,125.87,2.15669901]
[1769181339287,10.87035771,125.95,125.87,9.31569901]
[1769181339691,10.87035771,125.95,125.88,7.1585]
[1769181340300,8.7136587,125.97,125.9,7.1574]
[1769181340800,8.7136587,125.97,125.89,2.15669901]
[1769181341197,8.7136587,125.97,125.91,9.31349901]
[1769181342402,8.7136587,125.97,125.92,7.1562]
[1769181343002,8.7136587,125.99,125.93,7.1553]
[1769181343493,8.7136587,125.99,125.94,7.155]
[1769181344905,8.7136587,125.99,125.92,7.1557]
[1769181345108,10.87035771,125.99,125.92,7.1557]
[1769181346010,8.7136587,125.98,125.92,7.1557]
[1769181348503,10.87035771,125.97,125.9,7.157]
[1769181349004,8.7136587,126.0,125.93,2.15669901]
[1769181349200,8.7136587,126.02,125.94,2.15669901]
[1769181349509,8.7136587,126.0,125.94,2.15669901]
[1769181350204,8.7136587,125.98,125.9,111.3366]
[1769181350408,8.7136587,125.98,125.91,2.15669901]
[1769181351610,8.7136587,125.95,125.88,2.15669901]
[1769181353010,10.86915592,125.95,125.9,7.1574]
[1769181353310,8.7136587,125.95,125.89,2.15549722]
[1769181353809,8.7136587,125.95,125.9,7.1569]
[1769181354010,2.15549722,125.97,125.89,2.15549722]
[1769181354197,8.7136587,125.98,125.91,2.15549722]
[1769181355002,8.7136587,125.98,125.92,7.1558]
[1769181360212,8.7136587,125.98,125.88,111.3532]
[1769181360419,10.86915592,125.95,125.9,7.1569]
[1769181360814,10.86915592,125.95,125.88,7.1582]
[1769181361017,10.86915592,125.93,125.88,7.1582]
[1769181361511,8.7136587,125.92,125.86,7.1595]
[1769181361719,10.86915592,125.91,125.83,2.15549722]
[1769181362013,10.86915592,125.91,125.85,7.1602]
[1769181363115,8.7136587,125.91,125.85,7.1602]
[1769181364817,8.7136587,125.9,125.85,7.1602]
[1769181365317,8.7136587,125.9,125.83,7.1608]
[1769181365617,12.45302717,125.93,125.82,111.4017]
[1769181365818,8.7136587,125.92,125.86,7.1595]
[1769181366317,116.58702717,125.96,125.82,111.4017]
[1769181366318,8.7136587,125.91,125.82,111.4017]
[1769181366919,8.7136587,125.9,125.85,7.1603]
[1769181367216,8.7136587,125.9,125.79,426.0973]
[1769181368319,15.8716587,125.89,125.79,411.7701]
[1769181369225,8.7136587,125.88,125.8,7.1626]
[1769181369613,8.7136587,125.88,125.78,111.443]
[1769181370527,8.7136587,125.86,125.76,121.23416297]
[1769181371023,8.7136587,125.84,125.76,9.77856297]
[1769181371324,8.7136587,125.87,125.76,111.4605]
[1769181372113,7.1604,125.85,125.76,111.4605]
[1769181372313,8.7136587,125.87,125.77,111.4505]
[1769181372613,7.161,125.84,125.75,116.76532717]
[1769181372813,15.8746587,125.84,125.75,116.76532717]
[1769181373217,15.8746587,125.84,125.77,7.1647]
[1769181373420,15.8746587,125.84,125.75,5.29692717]
[1769181373719,8.7136587,125.84,125.74,516.89419932]
[1769181373925,15.8751587,125.83,125.74,516.89419932]
[1769181374813,8.7136587,125.81,125.74,216.49419932]
[1769181375015,8.7136587,125.81,125.73,7.1666]
[1769181375218,15.8769587,125.8,125.71,7.1679]
[1769181375618,15.8769587,125.8,125.69,305.77692717]
[1769181375619,8.7136587,125.8,125.69,305.77692717]
[1769181376526,7.1643,125.78,125.69,312.94592717]
[1769181376826,8.7136587,125.79,125.69,307.649]
[1769181377616,7.1656,125.76,125.69,300.48]
[1769181377816,8.7136587,125.77,125.67,7.1702]
[1769181378110,8.7136587,125.77,125.66,5.29692717]
[1769181378111,8.7136587,125.76,125.66,5.29692717]
[1769181378318,7.1658,125.76,125.66,5.29692717]
[1769181378725,120.1671587,125.77,125.66,5.29692717]
[1769181379020,8.7136587,125.76,125.66,5.29692717]
[1769181379726,111.4535,125.77,125.66,5.29692717]
[1769181379727,8.7136587,125.77,125.66,5.29692717]
[1769181380123,8.7136587,125.77,125.68,7.1698]
[1769181380723,8.7136587,125.81,125.69,5.29692717]
[1769181380924,120.1346587,125.81,125.69,5.29692717]
[1769181381730,7.1638,125.79,125.71,7.1682]
[1769181381927,120.1134587,125.84,125.72,5.29692717]
[1769181382128,8.7136587,125.84,125.72,116.78982717]
[1769181382427,111.3796,125.86,125.75,5.29692717]
[1769181382618,8.7136587,125.86,125.75,116.76442717]
[1769181383129,7.1601,125.86,125.78,12.46112717]
[1769181384528,7.159,125.88,125.78,5.29692717]
[1769181384929,7.159,125.88,125.8,7.163]
[1769181386127,8.7136587,125.89,125.8,7.163]
[1769181386327,8.7136587,125.92,125.81,5.29692717]
[1769181387035,8.7136587,125.92,125.82,7.1615]
[1769181388340,8.7136587,125.92,125.82,111.4088]
[1769181388521,8.7136587,125.92,125.81,5.29692717]
[1769181388726,8.7136587,125.9,125.8,7.1627]
[1769181389121,8.7136587,125.9,125.77,5.29692717]
[1769181389525,8.7136587,125.9,125.76,111.4584]
[1769181389726,8.7136587,125.88,125.78,7.1639]
[1769181389930,8.7136587,125.88,125.75,412.0427]
[1769181390437,8.7136587,125.87,125.75,300.58]
[1769181390634,8.7136587,125.84,125.71,111.5064]
[1769181390936,8.7136587,125.83,125.72,7.1675]
[1769181391436,8.7136587,125.81,125.7,7.1685]
[1769181391633,8.7136587,125.81,125.7,111.5146]
[1769181392134,8.7136587,125.81,125.69,111.5211]
[1769181392923,8.7136587,125.81,125.72,7.1675]
[1769181393121,8.7136587,125.81,125.71,111.5057]
[1769181393837,8.7136587,125.81,125.7,111.5151]
[1769181394335,8.7136587,125.8,125.7,7.1688]
[1769181394839,8.7136587,125.8,125.69,111.5208]
[1769181395035,8.7136587,125.8,125.71,7.1679]
[1769181395333,8.7136587,125.8,125.68,111.5308]
[1769181395835,8.7136587,125.79,125.67,417.39112717]
[1769181396131,8.7136587,125.79,125.68,111.5322]
[1769181397339,8.7136587,125.77,125.67,5.29692717]
[1769181397635,8.7136587,125.77,125.66,111.5452]
[1769181397841,8.7136587,125.76,125.65,111.5553]
[1769181398731,8.7136587,125.75,125.64,111.5657]
[1769181399239,8.7136587,125.72,125.62,213.93317917]
[1769181399536,8.7136587,125.72,125.61,111.5924]
[1769181400244,8.7136587,125.72,125.63,7.1723]
[1769181400441,8.7136587,125.72,125.63,118.7498]
[1769181400633,8.7136587,125.72,125.64,111.5678]
[1769181401030,8.7136587,125.72,125.65,118.7295]
[1769181401542,8.7136587,125.72,125.61,111.5924]
[1769181401845,8.7136587,125.72,125.6,111.6012]
[1769181402134,8.7136587,125.71,125.61,111.5943]
[1769181403148,8.7136587,125.71,125.61,7.1738]
[1769181403347,8.7136587,125.71,125.61,118.7691]
[1769181403647,8.7136587,125.71,125.62,7.1731]
[1769181404143,8.7136587,125.71,125.63,7.1724]
[1769181404346,8.7136587,125.71,125.61,111.5953]
[1769181405845,8.7136587,125.71,125.62,7.1731]
[1769181406441,8.7136587,125.7,125.62,7.1731]
[1769181407047,8.7136587,125.72,125.62,111.584]
[1769181407236,8.7136587,125.72,125.63,111.5776]
[1769181407440,8.7136587,125.72,125.64,111.568]
[1769181407635,8.7136587,125.75,125.66,111.5506]
[1769181408142,8.7136587,125.75,125.68,7.1697]
[1769181408846,8.7136587,125.74,125.66,7.1706]
[1769181409544,8.7136587,125.73,125.66,7.1706]
[1769181409941,8.7136587,125.73,125.63,111.577]
[1769181410146,8.7136587,125.72,125.63,111.577]
[1769181411043,8.7136587,125.72,125.66,7.171]
[1769181411548,8.7136587,125.71,125.62,111.584]
[1769181411747,8.7136587,125.71,125.63,111.5748]
[1769181412345,8.7136587,125.71,125.66,7.1709]
[1769181414548,8.7136587,125.7,125.61,111.5929]
[1769181414748,8.7136587,125.7,125.59,111.6125]
[1769181414952,7.1695,125.69,125.61,7.1738]
[1769181415139,8.7136587,125.67,125.58,111.6148]
[1769181415343,8.7136587,125.67,125.57,111.6258]
[1769181415541,8.7136587,125.67,125.55,111.6414]
[1769181415744,8.7136587,125.65,125.57,111.628]
[1769181416952,8.7136587,125.7,125.59,111.6118]
[1769181417647,8.7136587,125.68,125.61,7.1737]
[1769181417845,8.7136587,125.68,125.61,111.5948]
[1769181418055,8.7136587,125.71,125.62,111.5861]
[1769181418258,8.7136587,125.71,125.64,7.1721]
[1769181418556,8.7136587,125.7,125.59,111.6118]
[1769181418956,8.7136587,125.68,125.6,7.1741]
[1769181419550,8.7136587,125.67,125.6,7.1741]
[1769181419751,8.7136587,125.67,125.61,7.1738]
[1769181420142,8.7136587,125.7,125.62,7.1732]
[1769181422054,8.7136587,125.69,125.62,7.1732]
[1769181422256,8.7136587,125.69,125.63,7.1726]
[1769181422459,8.7136587,125.69,125.6,116.9138362]
[1769181422460,8.7136587,125.68,125.6,5.3126362]
[1769181422662,8.7136587,125.68,125.6,7.1744]
[1769181422959,15.8844587,125.67,125.6,7.1744]
[1769181423149,8.7136587,125.63,125.5,111.6885]
[1769181423349,8.7136587,125.63,125.52,111.6747]
[1769181423849,8.7136587,125.63,125.53,111.6642]
[1769181424052,8.7136587,125.63,125.52,111.671]
[1769181424257,8.7136587,125.63,125.55,7.1771]
[1769181424555,8.7136587,125.63,125.56,111.6397]
[1769181424753,8.7136587,125.63,125.56,7.1765]
[1769181424954,8.7136587,125.63,125.55,111.6461]
[1769181425149,8.7136587,125.63,125.52,111.671]
[1769181425459,8.7136587,125.63,125.54,111.6559]
[1769181425759,8.7136587,125.63,125.53,111.6621]
[1769181425955,8.7136587,125.62,125.52,111.671]
[1769181426258,8.7136587,125.6,125.5,111.6926]
[1769181426558,8.7136587,125.6,125.49,111.6938]
[1769181426747,8.7136587,125.6,125.51,111.6825]
[1769181426952,8.7136587,125.6,125.52,111.671]
[1769181427255,8.7136587,125.6,125.5,111.6928]
[1769181428055,8.7136587,125.6,125.48,111.7097]
[1769181428358,8.7136587,125.6,125.5,111.6927]
[1769181429256,8.7136587,125.6,125.51,7.1792]
[1769181430063,8.7136587,125.6,125.51,111.6815]
[1769181430560,8.7136587,125.63,125.53,111.6604]
[1769181431664,8.7136587,125.61,125.49,117.0147362]
[1769181432259,8.7136587,125.61,125.52,7.1789]
[1769181433068,116.8848362,125.64,125.52,7.1789]
[1769181433069,8.7136587,125.64,125.53,111.6646]
[1769181433654,8.7136587,125.63,125.52,5.3126362]
[1769181434359,8.7136587,125.63,125.53,111.6657]
[1769181435168,8.7136587,125.63,125.54,7.1775]
[1769181435464,8.7136587,125.63,125.53,111.6657]
[1769181435765,8.7136587,125.63,125.52,5.3126362]
[1769181436159,8.7136587,125.6,125.49,117.0147362]
[1769181436362,8.7136587,125.6,125.48,117.0204362]
[1769181437353,8.7136587,125.6,125.47,111.7133]
[1769181438957,8.7136587,125.57,125.49,7.1803]
[1769181439162,8.7136587,125.57,125.46,5.3126362]
[1769181439767,8.7136587,125.57,125.45,121.52644671]
[1769181440068,8.7136587,125.56,125.45,121.52644671]
[1769181440467,8.7136587,125.56,125.45,9.79384671]
[1769181440871,8.7136587,125.55,125.45,9.79384671]
[1769181441270,8.7136587,125.55,125.45,121.52484671]
[1769181441472,8.7136587,125.55,125.47,111.7161]
[1769181441674,8.7136587,125.58,125.48,111.7108]
[1769181442367,8.7136587,125.58,125.51,7.1793]
[1769181442562,8.7136587,125.58,125.48,111.7108]
[1769181442770,8.7136587,125.58,125.46,111.7218]
[1769181442967,8.7136587,125.56,125.49,7.1804]
[1769181443172,8.7136587,125.56,125.44,111.741]
[1769181443578,8.7136587,125.55,125.45,126.83888291]
[1769181443772,8.7136587,125.55,125.46,111.7284]
[1769181444078,15.8897587,125.58,125.48,111.7105]
[1769181444573,15.8897587,125.58,125.51,7.1794]
[1769181444773,8.7136587,125.58,125.5,111.6919]
[1769181444977,8.7136587,125.62,125.51,111.6843]
[1769181445171,15.8882587,125.6,125.53,7.1784]
[1769181445471,15.8882587,125.6,125.48,117.0231362]
[1769181445663,8.7136587,125.6,125.51,5.3126362]
[1769181446173,8.7136587,125.6,125.52,7.179]
[1769181446776,8.7136587,125.6,125.51,12.4922362]
[1769181447274,8.7136587,125.6,125.53,7.1784]
[1769181447470,8.7136587,125.63,125.51,116.9897362]
[1769181447980,8.7136587,125.62,125.51,5.3126362]
[1769181448783,15.8882587,125.6,125.49,117.0083362]
[1769181449071,8.7136587,125.63,125.52,5.3126362]
[1769181449470,8.7136587,125.63,125.52,12.4912362]
[1769181450974,8.7136587,125.63,125.53,7.1785]
[1769181450975,7.174,125.61,125.53,7.1785]
[1769181451384,8.7136587,125.63,125.52,5.3126362]
[1769181451682,7.1735,125.62,125.54,7.1778]
[1769181452277,8.7136587,125.63,125.54,7.1778]
[1769181452476,8.7136587,125.63,125.52,5.3126362]
[1769181452781,8.7136587,125.63,125.49,5.3126362]
[1769181453089,8.7136587,125.59,125.49,5.3126362]
[1769181453283,8.7136587,125.59,125.46,117.0350362]
[1769181454475,15.8894587,125.58,125.48,7.1809]
[1769181454681,8.7136587,125.57,125.48,7.1809]
[1769181455583,8.7136587,125.57,125.47,111.7179]
[1769181455771,8.7136587,125.59,125.48,111.7106]
[1769181456084,8.7136587,125.59,125.49,117.0135362]
[1769181456876,8.7136587,125.59,125.5,7.1797]
[1769181457084,8.7136587,125.59,125.49,5.3126362]
[1769181457980,8.7136587,125.59,125.48,111.7106]
[1769181458175,8.7136587,125.59,125.49,5.3126362]
[1769181458976,8.7136587,125.58,125.5,7.1797]
[1769181459373,8.7136587,125.58,125.49,111.6989]
[1769181459771,15.8893587,125.58,125.5,7.1799]
[1769181460081,8.7136587,125.57,125.5,7.1799]
[1769181461377,8.7136587,125.57,125.51,7.1796]
[1769181461582,15.8885587,125.6,125.5,111.6892]
[1769181462879,15.8885587,125.6,125.53,7.1782]
[1769181463081,8.7136587,125.6,125.51,111.6811]
[1769181463280,7.1737,125.62,125.52,111.6752]
[1769181463471,7.1737,125.62,125.56,7.1768]
[1769181463472,8.7136587,125.62,125.56,7.1768]
[1769181463673,8.7136587,125.62,125.54,111.6539]
[1769181463976,8.7136587,125.66,125.55,111.6469]
[1769181464478,8.7136587,125.66,125.58,111.6218]
[1769181465481,8.7136587,125.66,125.61,7.1738]
[1769181466475,8.7136587,125.69,125.6,111.6005]
[1769181466671,111.5054,125.72,125.6,111.6005]
[1769181466672,8.7136587,125.72,125.6,111.6005]
[1769181466882,8.7136587,125.72,125.62,111.5815]
[1769181467184,15.8814587,125.72,125.64,7.1721]
[1769181467386,8.7136587,125.71,125.64,7.1721]
[1769181467886,8.7136587,125.71,125.65,7.1712]
[1769181468484,8.7136587,125.71,125.63,7.1724]
[1769181468887,8.7136587,125.71,125.64,7.1721]
[1769181469782,8.7136587,125.71,125.65,7.1714]
[1769181470887,8.7136587,125.77,125.66,111.548]
[1769181471374,8.7136587,125.76,125.68,7.1696]
[1769181472087,8.7136587,125.76,125.69,7.1691]
[1769181472479,8.7136587,125.75,125.67,7.1701]
[1769181472678,8.7136587,125.75,125.66,111.5495]
[1769181473081,8.7136587,125.75,125.67,111.5353]
[1769181473286,14.02355916,125.78,125.68,111.5321]
[1769181473482,8.7136587,125.77,125.68,111.5321]
[1769181473979,8.7136587,125.77,125.67,111.5353]
[1769181474374,7.1652,125.77,125.68,7.1698]
[1769181474686,8.7136587,125.76,125.68,7.1698]
[1769181474897,8.7136587,125.79,125.7,111.5136]
[1769181475085,8.7136587,125.79,125.69,111.5205]
[1769181475284,8.7136587,125.79,125.66,111.5495]
[1769181475479,8.7136587,125.78,125.66,111.5495]
[1769181477093,15.8787587,125.77,125.67,111.5404]
[1769181477388,8.7136587,125.8,125.68,111.5298]
[1769181477789,15.8777587,125.79,125.7,7.1684]
[1769181478690,15.8780587,125.78,125.7,7.1684]
[1769181479889,15.8780587,125.78,125.71,7.1681]
[1769181480286,8.7136587,125.78,125.71,7.1681]
[1769181480476,8.7136587,125.78,125.68,116.83970046]
[1769181480477,8.7136587,125.81,125.72,7.1675]
[1769181480681,8.7136587,125.81,125.71,111.5066]
[1769181481086,15.8766587,125.81,125.73,7.1668]
[1769181482490,8.7136587,125.81,125.72,111.4946]
[1769181482992,302.57607076,125.82,125.73,111.4879]
[1769181483193,8.7136587,125.84,125.74,111.4795]
[1769181483395,8.7136587,125.87,125.76,111.4605]
[1769181483686,8.7136587,125.87,125.77,111.4515]
[1769181483894,8.7136587,125.86,125.77,7.1645]
[1769181484994,7.1604,125.85,125.77,7.1645]
[1769181485495,8.7136587,125.86,125.77,111.4498]
[1769181486592,7.1596,125.87,125.77,111.4498]
[1769181486895,15.8732587,125.87,125.8,7.163]
[1769181487490,8.7136587,125.87,125.81,7.1625]
[1769181487692,15.8721587,125.89,125.81,7.1625]
[1769181487996,8.7136587,125.89,125.81,7.1625]
[1769181488192,7.1587,125.88,125.79,7.1632]
[1769181488387,8.7136587,125.88,125.79,7.1632]
[1769181489000,15.8736587,125.86,125.76,111.4583]
[1769181489189,8.7136587,125.86,125.76,111.4583]
[1769181489899,8.7136587,125.86,125.77,7.1644]
[1769181490095,8.7136587,125.86,125.75,111.471]
[1769181490292,8.7136587,125.86,125.74,5.30990046]
[1769181490496,8.7136587,125.83,125.76,7.1649]
[1769181490694,8.7136587,125.83,125.71,116.80880046]
[1769181491092,7.1626,125.81,125.74,7.1665]
[1769181491293,8.7136587,125.81,125.74,7.1665]
[1769181492298,116.70440046,125.84,125.71,116.80880046]
[1769181492299,7.1621,125.82,125.75,7.1659]
[1769181492496,7.1621,125.82,125.72,111.4952]
[1769181492497,14.02355916,125.84,125.72,111.4952]
[1769181492708,8.7136587,125.84,125.75,111.4709]
[1769181493099,14.02355916,125.87,125.75,111.4709]
[1769181493294,8.7136587,125.86,125.74,111.4761]
[1769181493495,8.7136587,125.85,125.73,111.4817]
[1769181494304,8.7136587,125.84,125.74,111.479]
[1769181494499,8.7136587,125.87,125.75,111.471]
[1769181494808,8.7136587,125.87,125.77,111.4502]
[1769181495910,8.7136587,125.87,125.78,7.1638]
[1769181496705,8.7136587,125.84,125.74,111.479]